fUSD/lending_fUSD_20260121
["ID","MTS","AMOUNT","RATE_DAILY","PERIOD"]
[402892599,1768953877456,500.0,0.000162,2]
[402892600,1768954015119,-254.03711572,0.00016761,2]
[402892601,1768954015139,-168.36921976,0.00016761,2]
[402892602,1768954050575,3578.0,0.00016415,2]
[402892603,1768954082389,915.62,0.00016312,2]
[402892605,1768954231682,-550.0,0.00016759,2]
[402892606,1768954231692,-300.0,0.00016759,2]
[402892607,1768954231706,-300.0,0.00016759,2]
[402892608,1768954231715,-1200.0,0.00016759,2]
[402892609,1768954231725,-291.0,0.00016759,2]
[402892610,1768954231735,-617.41992576,0.0001676,2]
[402892611,1768954231744,-500.0,0.0001676,2]
[402892612,1768954231753,-500.0,0.0001676,2]
[402892613,1768954231763,-500.0,0.0001676,2]
[402892615,1768954231774,-500.0,0.0001676,2]
[402892616,1768954231784,-500.0,0.0001676,2]
[402892617,1768954231794,-500.0,0.0001676,2]
[402892618,1768954231805,-500.0,0.0001676,2]
[402892619,1768954231815,-500.0,0.0001676,2]
[402892620,1768954231824,-500.0,0.0001676,2]
[402892621,1768954231833,-500.0,0.0001676,2]
[402892622,1768954231843,-500.0,0.0001676,2]
[402892623,1768954231852,-500.0,0.0001676,2]
[402892624,1768954231861,-500.0,0.0001676,2]
[402892625,1768954231871,-500.0,0.0001676,2]
[402892626,1768954231880,-500.0,0.0001676,2]
[402892627,1768954231890,-214.58718924,0.0001676,2]
[402892628,1768954231899,-287.44635906,0.0001676,2]
[402892629,1768954231911,-212.55364094,0.0001676,2]
[402892630,1768954231921,-500.0,0.0001676,2]
[402892631,1768954231931,-500.0,0.0001676,2]
[402892632,1768954231940,-500.0,0.0001676,2]
[402892633,1768954231950,-500.0,0.0001676,2]
[402892634,1768954231960,-500.0,0.0001676,2]
[402892635,1768954231969,-500.0,0.0001676,2]
[402892636,1768954231979,-500.0,0.0001676,2]
[402892637,1768954231989,-500.0,0.0001676,2]
[402892638,1768954231999,-500.0,0.0001676,2]
[402892639,1768954232008,-500.0,0.0001676,2]
[402892640,1768954232017,-500.0,0.0001676,2]
[402892641,1768954232027,-500.0,0.0001676,2]
[402892642,1768954232037,-450.0,0.0001676,2]
[402892643,1768954232047,-500.0,0.0001676,2]
[402892645,1768954232056,-500.0,0.0001676,2]
[402892647,1768954232066,-500.0,0.0001676,2]
[402892648,1768954232075,-314.63,0.00016762,2]
[402892649,1768954232084,-157.052,0.00016765,2]
[402892650,1768954232096,-249.6292,0.00016765,2]
[402892651,1768954232106,-528.63515906,0.00016765,2]
[402892653,1768954232118,-995.88708944,0.00016765,2]
[402892655,1768954232141,-663.7357518,0.00016765,2]
[402892660,1768954232178,-469.5,0.00016765,2]
[402892663,1768954232198,-1446.7295,0.00016765,2]
[402892665,1768954232211,-374.7451931,0.00016765,2]
[402892667,1768954232223,-102973.94700038,0.00016765,2]
[402892669,1768954232234,-126631.05171999,0.00016765,2]
[402892672,1768954232250,-18779.6082815,0.00016765,2]
[402892674,1768954232261,-206213.53675933,0.00016765,2]
[402892679,1768954232359,-14083.69270805,0.00016765,2]
[402892685,1768954238278,-3488.8153294,0.00016765,2]
[402892686,1768954238290,-576.55739814,0.00016765,2]
[402892687,1768954238365,-6734.89884,0.00016765,2]
[402892688,1768954238378,-299.49999525,0.00016765,2]
[402892689,1768954238453,-243758.97267456,0.00016765,2]
[402892690,1768954238463,-424.4840498,0.00016807,2]
[402892691,1768954238473,-9990.03529749,0.00016807,2]
[402892692,1768954238483,-151.0,0.00016855,2]
[402892693,1768954238493,-151.0,0.00016855,2]
[402892694,1768954238502,-151.0,0.00016855,2]
[402892695,1768954238512,-151.0,0.00016855,2]
[402892696,1768954238522,-151.0,0.00016855,2]
[402892697,1768954238532,-151.0,0.00016855,2]
[402892698,1768954238543,-151.0,0.00016855,2]
[402892699,1768954238557,-151.0,0.00016855,2]
[402892700,1768954238567,-151.0,0.00016855,2]
[402892701,1768954238577,-151.0,0.00016855,2]
[402892702,1768954238588,-151.0,0.00016855,2]
[402892703,1768954238597,-151.0,0.00016855,2]
[402892704,1768954238607,-206.66,0.00016862,2]
[402892705,1768954238617,-500.0,0.00016864,2]
[402892706,1768954238627,-206.66,0.00016907,2]
[402892707,1768954238637,-150.00782202,0.00016914,2]
[402892708,1768954238647,-206.66,0.00016951,2]
[402892709,1768954238656,-206.66,0.00016995,2]
[402892710,1768954238666,-314.63,0.00017036,2]
[402892711,1768954238676,-206.66,0.0001704,2]
[402892712,1768954238686,-500.0,0.0001707,2]
[402892713,1768954238695,-500.0,0.0001707,2]
[402892714,1768954238708,-501.14381708,0.0001707,2]
[402892715,1768954238717,-500.0,0.0001707,2]
[402892716,1768954238726,-580.7623026,0.0001707,2]
[402892717,1768954238736,-500.0,0.0001707,2]
[402892718,1768954238747,-500.0,0.00017073,2]
[402892719,1768954238757,-302.34277429,0.00017073,2]
[402892720,1768954238766,-500.0,0.00017073,2]
[402892721,1768954238779,-358.08598744,0.00017073,2]
[402892722,1768954238787,-500.0,0.00017073,2]
[402892723,1768954238797,-206.66,0.00017084,2]
[402892724,1768954238811,-206.66,0.00017129,2]
[402892725,1768954238821,-237.0,0.00017133,2]
[402892726,1768954238831,-338.0,0.00017146,2]
[402892727,1768954238842,-206.66,0.00017173,2]
[402892729,1768954238851,-151.0,0.00017215,2]
[402892731,1768954238861,-151.0,0.00017215,2]
[402892732,1768954238870,-206.66,0.00017217,2]
[402892733,1768954238879,-206.66,0.00017262,2]
[402892734,1768954238889,-500.0,0.00017272,2]
[402892735,1768954238899,-472.73300168,0.00017272,2]
[402892736,1768954238910,-500.0,0.00017272,2]
[402892737,1768954238919,-500.0,0.00017272,2]
[402892738,1768954238928,-206.66,0.00017306,2]
[402892739,1768954238938,-314.63,0.0001731,2]
[402892740,1768954238948,-206.66,0.0001735,2]
[402892741,1768954238957,-161.88136405,0.00017373,2]
[402892742,1768954238967,-150.0,0.00017373,2]
[402892743,1768954238976,-500.0,0.00017373,2]
[402892744,1768954238985,-500.0,0.00017373,2]
[402892745,1768954238995,-206.66,0.00017395,2]
[402892746,1768954239004,-151.0,0.00017418,2]
[402892747,1768954239013,-151.0,0.00017418,2]
[402892748,1768954239022,-150.0,0.0001743,2]
[402892749,1768954239033,-206.66,0.00017439,2]
[402892750,1768954239042,-206.66,0.00017484,2]
[402892751,1768954239052,-206.66,0.00017528,2]
[402892752,1768954239061,-206.66,0.00017572,2]
[402892753,1768954239071,-314.63,0.00017584,2]
[402892754,1768954239081,-206.66,0.00017617,2]
[402892755,1768954239091,-14838.25288475,0.00017634,2]
[402892756,1768954239100,-206.66,0.00017661,2]
[402892757,1768954239110,-206.66,0.00017705,2]
[402892758,1768954239120,-8935.33,0.00017728,2]
[402892759,1768954239129,-5893.99,0.00017728,2]
[402892760,1768954239139,-499.99,0.00017728,2]
[402892761,1768954239148,-2974.44,0.00017728,2]
[402892762,1768954239157,-9999.99,0.00017728,2]
[402892763,1768954239167,-9999.99,0.00017728,2]
[402892764,1768954239176,-28729.52,0.00017728,2]
[402892765,1768954239185,-3266.95,0.00017728,2]
[402892766,1768954239194,-150.99,0.00017728,2]
[402892767,1768954239204,-9999.99,0.00017728,2]
[402892768,1768954239214,-9999.99,0.00017728,2]
[402892769,1768954239224,-463.32,0.00017728,2]
[402892770,1768954239234,-314.65,0.00017858,2]
[402892771,1768954239244,-200.0,0.00017921,2]
[402892772,1768954239253,-1055.33179761,0.00017921,2]
[402892773,1768954239262,-424.4840498,0.00017973,2]
[402892774,1768954239272,-9990.0352974,0.00017973,2]
[402892775,1768954239281,-150.00782202,0.0001812,3]
[402892776,1768954239291,-838.93,0.0001825,2]
[402892777,1768954239301,-479.75,0.00018252,2]
[402892778,1768954239310,-201.0,0.00018263,2]
[402892779,1768954239319,-150.0,0.000183,7]
[402892780,1768954239329,-420.0,0.00018309,2]
[402892781,1768954239339,-412.0,0.00018309,2]
[402892782,1768954239348,-1680.0,0.000184,2]
[402892783,1768954239358,-195.0,0.00018435,2]
[402892784,1768954239367,-424.21815582,0.00018435,2]
[402892785,1768954239377,-250.0,0.00018435,2]
[402892786,1768954239387,-250.0,0.00018436,2]
[402892787,1768954239396,-195.0,0.00018437,2]
[402892788,1768954239405,-250.0,0.00018437,2]
[402892789,1768954239415,-600.0,0.00018437,2]
[402892790,1768954239424,-300.0,0.00018437,2]
[402892791,1768954239434,-1515.66637851,0.00018679,2]
[402892792,1768954239444,-231.40398252,0.00019082,2]
[402892793,1768954239454,-424.4840498,0.00019138,2]
[402892794,1768954239463,-9990.0352974,0.00019138,2]
[402892795,1768954239473,-838.93,0.00019163,2]
[402892796,1768954239482,-500.0,0.00019178,2]
[402892797,1768954239491,-500.0,0.00019178,2]
[402892798,1768954239500,-500.0,0.00019178,2]
[402892799,1768954239511,-219.78075747,0.00019181,2]
[402892800,1768954239520,-150.00782202,0.00019327,9]
[402892801,1768954239529,-1235.68,0.00019339,2]
[402892802,1768954239539,-506.0,0.000196,2]
[402892803,1768954239548,-479.75,0.00019621,2]
[402892804,1768954239558,-3105.0,0.0002,2]
[402892805,1768954239567,-838.93,0.00020075,2]
[402892806,1768954239577,-2351.0,0.00020202,2]
[402892807,1768954239586,-424.4840498,0.00020304,2]
[402892808,1768954239596,-9990.0352974,0.00020304,2]
[402892809,1768954239605,-201.0,0.0002051,2]
[402892810,1768954239616,-150.00782202,0.00020533,15]
[402892811,1768954239626,-277.72,0.00020709,2]
[402892812,1768954239635,-838.93,0.00020988,2]
[402892813,1768954239645,-424.4840498,0.00021469,2]
[402892814,1768954239654,-9990.0352974,0.00021469,2]
[402892815,1768954239663,-500.0,0.0002156,2]
[402892816,1768954239672,-518.79811587,0.0002156,2]
[402892817,1768954239682,-500.0,0.0002156,2]
[402892818,1768954239692,-399.47,0.00021638,30]
[402892819,1768954239703,-150.00782202,0.0002174,21]
[402892820,1768954239713,-838.93,0.000219,2]
[402892821,1768954239722,-179.41,0.00022113,2]
[402892822,1768954239732,-250.0,0.00022144,2]
[402892823,1768954239742,-1009.0,0.0002218,2]
[402892824,1768954239752,-424.4840498,0.00022635,2]
[402892825,1768954239761,-9990.0352974,0.00022635,2]
[402892826,1768954239772,-201.0,0.00022756,2]
[402892827,1768954239782,-162.5,0.00022806,2]
[402892828,1768954239792,-150.00782202,0.00022946,27]
[402892829,1768954239802,-506.0,0.00023153,5]
[402892830,1768954239812,-424.4840498,0.000238,2]
[402892831,1768954239822,-9990.0352974,0.000238,2]
[402892832,1768954239832,-500.0,0.00023804,2]
[402892833,1768954239842,-179.41,0.00023938,2]
[402892834,1768954239852,-150.00782202,0.00024152,32]
[402892835,1768954239862,-21984.19,0.00024275,2]
[402892836,1768954239872,-216.93471135,0.00024293,7]
[402892837,1768954239881,-382.69854492,0.00024293,7]
[402892838,1768954239891,-572.4941355,0.00024293,7]
[402892839,1768954239900,-774.5958,0.00024293,7]
[402892840,1768954239910,-1000.0,0.00024384,2]
[402892841,1768954239919,-1000.0,0.00024658,2]
[402892842,1768954239928,-1000.0,0.00024658,2]
[402892843,1768954239938,-500.0,0.00024757,2]
[402892844,1768954239948,-514.84070869,0.00024757,2]
[402892845,1768954239958,-500.0,0.00024757,2]
[402892846,1768954239967,-500.0,0.00024757,2]
[402892847,1768954239976,-500.0,0.00024757,2]
[402892848,1768954239986,-500.0,0.00024757,2]
[402892849,1768954239995,-500.0,0.00024757,2]
[402892850,1768954240005,-500.0,0.00024757,2]
[402892851,1768954240014,-500.0,0.00024757,2]
[402892852,1768954240024,-500.0,0.00024757,2]
[402892853,1768954240033,-500.0,0.00024757,2]
[402892854,1768954240044,-500.0,0.00024757,2]
[402892855,1768954240054,-500.0,0.00024757,2]
[402892856,1768954240064,-500.0,0.00024757,2]
[402892857,1768954240073,-500.0,0.00024757,2]
[402892858,1768954240083,-500.0,0.00024757,2]
[402892859,1768954240093,-500.0,0.00024757,2]
[402892860,1768954240102,-500.0,0.00024757,2]
[402892861,1768954240111,-322.6107,0.00024757,2]
[402892862,1768954240121,-500.0,0.00024757,2]
[402892863,1768954240130,-500.0,0.00024757,2]
[402892864,1768954240140,-500.0,0.00024757,2]
[402892865,1768954240149,-500.0,0.00024757,2]
[402892866,1768954240158,-500.0,0.00024757,2]
[402892867,1768954240167,-500.0,0.00024757,2]
[402892868,1768954240176,-500.0,0.00024757,2]
[402892869,1768954240186,-500.0,0.00024757,2]
[402892870,1768954240195,-500.0,0.00024757,2]
[402892871,1768954240204,-250.0,0.00024757,2]
[402892872,1768954240214,-500.0,0.00024757,2]
[402892873,1768954240224,-250.0,0.00024757,2]
[402892874,1768954240233,-500.0,0.00024757,2]
[402892875,1768954240243,-500.0,0.00024757,2]
[402892876,1768954240253,-250.0,0.00024757,2]
[402892877,1768954240262,-250.0,0.00024757,2]
[402892878,1768954240272,-500.0,0.00024757,2]
[402892879,1768954240281,-500.0,0.00024757,2]
[402892880,1768954240291,-250.0,0.00024757,2]
[402892881,1768954240301,-250.0,0.00024757,2]
[402892882,1768954240311,-500.0,0.00024757,2]
[402892883,1768954240321,-250.0,0.00024757,2]
[402892884,1768954240330,-250.0,0.00024757,2]
[402892885,1768954240340,-500.0,0.00024757,2]
[402892886,1768954240353,-250.0,0.00024757,2]
[402892887,1768954240364,-250.0,0.00024757,2]
[402892888,1768954240374,-500.0,0.00024757,2]
[402892889,1768954240385,-250.0,0.00024757,2]
[402892890,1768954240395,-250.0,0.00024757,2]
[402892891,1768954240405,-250.0,0.00024757,2]
[402892892,1768954240414,-250.0,0.00024757,2]
[402892893,1768954240424,-174.61919141,0.00024757,2]
[402892894,1768954240434,-250.0,0.00024757,2]
[402892895,1768954240444,-250.0,0.00024757,2]
[402892896,1768954240453,-250.0,0.00024757,2]
[402892897,1768954240463,-250.0,0.00024757,2]
[402892898,1768954240473,-250.0,0.00024757,2]
[402892899,1768954240483,-250.0,0.00024757,2]
[402892900,1768954240492,-151.0,0.00024757,2]
[402892901,1768954240502,-302.96874146,0.00024757,2]
[402892902,1768954240511,-500.0,0.00024757,2]
[402892903,1768954240521,-500.0,0.00024757,2]
[402892904,1768954240531,-404.89401372,0.00024757,2]
[402892905,1768954240541,-500.0,0.00024757,2]
[402892906,1768954240552,-1515.81946332,0.00024757,2]
[402892908,1768954240561,-500.0,0.00024757,2]
[402892909,1768954240571,-500.0,0.00024757,2]
[402892910,1768954240580,-500.0,0.00024757,2]
[402892911,1768954240589,-500.0,0.00024757,2]
[402892912,1768954240599,-5678.0,0.00024757,2]
[402892913,1768954240609,-500.0,0.00024757,2]
[402892914,1768954240618,-2149.83614405,0.00024757,2]
[402892915,1768954240628,-500.0,0.00024757,2]
[402892916,1768954240638,-500.0,0.00024757,2]
[402892917,1768954240647,-500.0,0.00024757,2]
[402892918,1768954240657,-500.0,0.00024757,2]
[402892919,1768954240667,-250.0,0.00024757,2]
[402892920,1768954240676,-500.0,0.00024757,2]
[402892921,1768954240685,-250.0,0.00024757,2]
[402892922,1768954240697,-500.0,0.00024757,2]
[402892923,1768954240712,-250.0,0.00024757,2]
[402892924,1768954240721,-250.0,0.00024757,2]
[402892925,1768954240730,-289.17042535,0.00024757,2]
[402892926,1768954240740,-250.0,0.00024757,2]
[402892927,1768954240751,-250.0,0.00024757,2]
[402892928,1768954240761,-250.0,0.00024757,2]
[402892929,1768954240770,-250.0,0.00024757,2]
[402892930,1768954240782,-250.0,0.00024757,2]
[402892931,1768954240791,-250.0,0.00024757,2]
[402892932,1768954240802,-250.0,0.00024757,2]
[402892933,1768954240812,-250.0,0.00024757,2]
[402892934,1768954240822,-250.0,0.00024757,2]
[402892935,1768954240832,-250.0,0.00024757,2]
[402892936,1768954240841,-303.39026372,0.00024869,2]
[402892937,1768954240851,-1000.0,0.00024932,2]
[402892938,1768954240861,-424.4840498,0.00024966,2]
[402892939,1768954240871,-9990.0352974,0.00024966,2]
[402892940,1768954240881,-201.0,0.00025003,2]
[402892941,1768954240891,-1000.0,0.00025205,2]
[402892942,1768954240901,-533.88981491,0.00025305,2]
[402892943,1768954240911,-181.08010149,0.00025305,2]
[402892944,1768954240921,-150.00782202,0.00025359,36]
[402892945,1768954240930,-1000.0,0.00025479,2]
[402892946,1768954240940,-1000.0,0.00025753,2]
[402892947,1768954240950,-179.41,0.00025763,2]
[402892948,1768954240960,-553.64373807,0.00025853,2]
[402892949,1768954240971,-187.78006525,0.00025853,2]
[402892950,1768954240981,-1000.0,0.00026027,2]
[402892951,1768954240992,-424.4840498,0.00026131,2]
[402892952,1768954241002,-9990.0352974,0.00026131,2]
[402892953,1768954241012,-1736.0,0.00026301,2]
[402892954,1768954241023,-574.12855637,0.00026401,2]
[402892955,1768954241033,-197.13290931,0.00026401,2]
[402892956,1768954241043,-150.00782202,0.00026565,40]
[402892957,1768954241054,-399.47,0.00026685,30]
[402892958,1768954241064,-506.0,0.00026706,8]
[402892959,1768954241074,-595.37131296,0.00026949,2]
[402892960,1768954241083,-500.0,0.00027129,2]
[402892961,1768954241093,-514.77489782,0.00027129,2]
[402892962,1768954241104,-1265.81389116,0.0002713,2]
[402892963,1768954241113,-201.0,0.0002725,2]
[402892964,1768954241124,-164.41806213,0.00027297,2]
[402892965,1768954241134,-424.4840498,0.00027297,2]
[402892966,1768954241144,-9990.0352974,0.00027297,2]
[402892967,1768954241154,-415.852377,0.00027297,2]
[402892968,1768954241164,-3033.96285235,0.00027297,2]
[402892969,1768954241174,-1130.71365112,0.00027297,2]
[402892970,1768954241184,-2386.8970444,0.00027325,2]
[402892971,1768954241194,-500.0,0.0002737,2]
[402892972,1768954241204,-150.0,0.0002737,2]
[402892973,1768954241214,-188.93625446,0.00027387,2]
[402892974,1768954241225,-178.0,0.0002739,120]
[402892975,1768954241235,-151.0,0.00027394,7]
[402892976,1768954241246,-2022.68423342,0.00027396,2]
[402892977,1768954241256,-500.0,0.00027396,2]
[402892978,1768954241266,-500.0,0.00027396,2]
[402892979,1768954241276,-500.0,0.00027396,2]
[402892980,1768954241287,-500.0,0.00027396,2]
[402892981,1768954241298,-500.0,0.00027396,2]
[402892982,1768954241308,-500.0,0.00027396,2]
[402892983,1768954241319,-500.0,0.00027396,2]
[402892984,1768954241330,-500.0,0.00027396,2]
[402892985,1768954241341,-500.0,0.00027396,2]
[402892986,1768954241351,-165.59,0.00027396,2]
[402892987,1768954241361,-409.94526171,0.00027396,10]
[402892988,1768954241371,-150.0,0.00027396,2]
[402892989,1768954241382,-300.0,0.00027396,10]
[402892990,1768954241392,-670.55457234,0.00027396,2]
[402892991,1768954241402,-150.0,0.00027396,2]
[402892992,1768954241412,-500.0,0.00027396,2]
[402892993,1768954241423,-500.0,0.00027396,2]
[402892994,1768954241432,-500.0,0.00027396,2]
[402892995,1768954241442,-368.78,0.00027396,2]
[402892996,1768954241453,-552.7039255,0.00027397,120]
[402892997,1768954241463,-173.23449407,0.00027397,120]
[402892998,1768954241474,-502.30560984,0.00027397,120]
[402892999,1768954241484,-518.53587801,0.00027397,120]
[402893000,1768954241494,-514.15531808,0.00027397,120]
[402893001,1768954241504,-560.41931141,0.00027397,120]
[402893002,1768954241514,-507.17171132,0.00027397,120]
[402893003,1768954241525,-500.0,0.00027397,120]
[402893004,1768954241536,-500.0,0.00027397,120]
[402893005,1768954241546,-500.0,0.00027397,120]
[402893006,1768954241557,-500.0,0.00027397,120]
[402893007,1768954241567,-500.0,0.00027397,120]
[402893008,1768954241577,-529.48040954,0.00027397,120]
[402893009,1768954241587,-500.0,0.00027397,120]
[402893010,1768954241598,-491.72766216,0.00027397,120]
[402893011,1768954241608,-200296.554019,0.00027397,2]
[402893012,1768954241617,-159.55447946,0.00027397,120]
[402893013,1768954241627,-500.0,0.00027397,120]
[402893014,1768954241637,-500.0,0.00027397,120]
[402893015,1768954241647,-500.0,0.00027397,120]
[402893016,1768954241657,-500.0,0.00027397,120]
[402893017,1768954241667,-500.0,0.00027397,120]
[402893018,1768954241677,-500.0,0.00027397,120]
[402893019,1768954241687,-500.0,0.00027397,120]
[402893020,1768954241699,-500.0,0.00027397,120]
[402893021,1768954241714,-500.0,0.00027397,120]
[402893022,1768954241724,-628.85412755,0.00027397,120]
[402893023,1768954241734,-502.59582169,0.00027397,120]
[402893024,1768954241746,-200.0,0.00027397,2]
[402893025,1768954241756,-500.0,0.00027397,120]
[402893026,1768954241766,-500.0,0.00027397,120]
[402893027,1768954241778,-500.0,0.00027397,120]
[402893028,1768954241788,-572.61916979,0.00027397,120]
[402893029,1768954241798,-1000.0,0.00027397,2]
[402893030,1768954241808,-1000.0,0.00027397,2]
[402893031,1768954241818,-1000.0,0.00027397,2]
[402893032,1768954241829,-1000.0,0.00027397,2]
[402893033,1768954241841,-1000.0,0.00027397,2]
[402893034,1768954241851,-500.0,0.00027397,120]
[402893035,1768954241861,-505.80469929,0.00027397,120]
[402893036,1768954241871,-657.56,0.00027397,120]
[402893037,1768954241882,-657.56,0.00027397,120]
[402893038,1768954241893,-657.56,0.00027397,120]
[402893039,1768954241903,-500.0,0.00027397,120]
[402893040,1768954241914,-657.56,0.00027397,120]
[402893041,1768954241923,-657.56,0.00027397,120]
[402893042,1768954241934,-657.56,0.00027397,120]
[402893043,1768954241944,-657.56,0.00027397,120]
[402893044,1768954241954,-657.56,0.00027397,120]
[402893045,1768954241965,-500.0,0.00027397,120]
[402893046,1768954241975,-657.56,0.00027397,120]
[402893047,1768954241987,-500.0,0.00027397,120]
[402893048,1768954241997,-657.56,0.00027397,120]
[402893049,1768954242007,-500.0,0.00027397,120]
[402893050,1768954242017,-657.56,0.00027397,120]
[402893051,1768954242027,-500.0,0.00027397,120]
[402893052,1768954242038,-657.56,0.00027397,120]
[402893053,1768954242048,-500.0,0.00027397,120]
[402893054,1768954242059,-657.56,0.00027397,120]
[402893055,1768954242069,-500.0,0.00027397,120]
[402893056,1768954242079,-272.09367155,0.00027397,120]
[402893057,1768954242089,-657.56,0.00027397,120]
[402893058,1768954242099,-657.56,0.00027397,120]
[402893059,1768954242109,-657.56,0.00027397,120]
[402893060,1768954242119,-657.56,0.00027397,120]
[402893061,1768954242129,-500.0,0.00027397,120]
[402893062,1768954242139,-657.56,0.00027397,120]
[402893063,1768954242149,-500.0,0.00027397,120]
[402893064,1768954242159,-657.56,0.00027397,120]
[402893065,1768954242171,-500.0,0.00027397,120]
[402893066,1768954242180,-657.56,0.00027397,120]
[402893067,1768954242190,-500.0,0.00027397,120]
[402893068,1768954242474,-657.56,0.00027397,120]
[402893069,1768954242484,-657.56,0.00027397,120]
[402893070,1768954242494,-657.56,0.00027397,120]
[402893071,1768954242503,-657.5772629,0.00027397,120]
[402893072,1768954242513,-500.0,0.00027397,120]
[402893073,1768954242522,-500.0,0.00027397,120]
[402893074,1768954242531,-500.0,0.00027397,120]
[402893075,1768954242540,-500.0,0.00027397,120]
[402893076,1768954242549,-500.0,0.00027397,120]
[402893077,1768954242561,-500.0,0.00027397,120]
[402893078,1768954242571,-410.45085045,0.00027397,120]
[402893079,1768954242580,-500.0,0.00027397,120]
[402893080,1768954242590,-500.0,0.00027397,120]
[402893081,1768954242599,-500.0,0.00027397,120]
[402893082,1768954242608,-500.0,0.00027397,120]
[402893083,1768954242618,-500.0,0.00027397,120]
[402893084,1768954242628,-232.36175701,0.00027397,120]
[402893085,1768954242637,-503.88010625,0.00027397,120]
[402893086,1768954242646,-500.0,0.00027397,120]
[402893087,1768954242656,-516.79253204,0.00027397,120]
[402893088,1768954242665,-500.0,0.00027397,120]
[402893089,1768954242674,-500.0,0.00027397,120]
[402893090,1768954242683,-500.0,0.00027397,120]
[402893091,1768954242693,-500.0,0.00027397,120]
[402893092,1768954242706,-500.0,0.00027397,120]
[402893094,1768954242715,-310.46588085,0.00027397,120]
[402893096,1768954242724,-500.0,0.00027397,120]
[402893097,1768954242733,-500.0,0.00027397,120]
[402893098,1768954242744,-500.0,0.00027397,120]
[402893099,1768954242754,-500.0,0.00027397,120]
[402893100,1768954242763,-500.0,0.00027397,120]
[402893103,1768954242775,-500.0,0.00027397,120]
[402893106,1768954242784,-500.0,0.00027397,120]
[402893107,1768954242794,-500.0,0.00027397,120]
[402893109,1768954242803,-461.12458924,0.00027397,120]
[402893112,1768954242812,-500.0,0.00027397,120]
[402893116,1768954242822,-500.0,0.00027397,120]
[402893118,1768954242831,-500.0,0.00027397,120]
[402893120,1768954242840,-501.52657078,0.00027397,120]
[402893122,1768954242849,-510.1109599,0.00027397,120]
[402893124,1768954242859,-160.13978686,0.00027397,120]
[402893126,1768954242868,-500.0,0.00027397,120]
[402893128,1768954242878,-157.990146,0.00027397,3]
[402893130,1768954242887,-500.0,0.00027397,120]
[402893132,1768954242896,-500.0,0.00027397,120]
[402893133,1768954242905,-377.23741854,0.00027397,120]
[402893135,1768954242914,-500.0,0.00027397,120]
[402893136,1768954242924,-522.95190908,0.00027397,120]
[402893137,1768954242933,-410.84456292,0.00027397,120]
[402893138,1768954242943,-500.0,0.00027397,120]
[402893139,1768954242952,-500.0,0.00027397,120]
[402893140,1768954242961,-500.0,0.00027397,120]
[402893141,1768954242971,-500.0,0.00027397,120]
[402893142,1768954242980,-500.0,0.00027397,120]
[402893143,1768954242989,-500.0,0.00027397,120]
[402893144,1768954242999,-640.77314968,0.00027397,120]
[402893145,1768954243008,-500.0,0.00027397,120]
[402893146,1768954243017,-500.0,0.00027397,120]
[402893147,1768954243026,-500.0,0.00027397,120]
[402893148,1768954243035,-500.0,0.00027397,120]
[402893149,1768954243044,-500.0,0.00027397,120]